[Event "Live Chess"]
[Site "Chess.com"]
[Date "2023.05.21"]
[Round "-"]
[White "Rusty_Bridges"]
[Black "swingrumbacha"]
[Result "0-1"]
[WhiteElo "1525"]
[BlackElo "2440"]
[TimeControl "300"]
[EndTime "1:39:45 PDT"]
[Termination "swingrumbacha won by resignation"]

1. e4 {[%clk 0:04:52.9]} 1... e6 {[%clk 0:04:56.4]} 2. d4 {[%clk 0:04:50.9]}
2... d5 {[%clk 0:04:53]} 3. exd5 {[%clk 0:04:49.9]} 3... exd5 {[%clk 0:04:49.9]}
4. Bd3 {[%clk 0:04:48.4]} 4... Bd6 {[%clk 0:04:46.3]} 5. c3 {[%clk 0:04:46.5]}
5... Ne7 {[%clk 0:04:42.6]} 6. Nf3 {[%clk 0:04:44.6]} 6... Bf5 {[%clk
0:04:37.5]} 7. O-O {[%clk 0:04:42.1]} 7... Bxd3 {[%clk 0:04:33.9]} 8. Qxd3
{[%clk 0:04:40.3]} 8... c6 {[%clk 0:04:29.9]} 9. Bg5 {[%clk 0:04:39.3]} 9... h6
{[%clk 0:04:24.5]} 10. Bh4 {[%clk 0:04:37.6]} 10... Na6 {[%clk 0:04:19.5]} 11.
Re1 {[%clk 0:04:32.9]} 11... O-O {[%clk 0:04:14.9]} 12. Nbd2 {[%clk 0:04:29.5]}
12... Re8 {[%clk 0:04:10.1]} 13. Ne5 {[%clk 0:04:26.3]} 13... f6 {[%clk
0:04:05.7]} 14. Ng6 {[%clk 0:04:22.4]} 14... Qd7 {[%clk 0:04:01.2]} 15. Nxe7+
{[%clk 0:04:08.2]} 15... Rxe7 {[%clk 0:03:57.6]} 16. Nf3 {[%clk 0:04:02.8]}
16... Nc7 {[%clk 0:03:51.8]} 17. Bg3 {[%clk 0:04:00.1]} 17... Rxe1+ {[%clk
0:03:46.4]} 18. Rxe1 {[%clk 0:03:57.4]} 18... Ne8 {[%clk 0:03:40.5]} 19. Nh4
{[%clk 0:03:40]} 19... Bxg3 {[%clk 0:03:36.1]} 20. hxg3 {[%clk 0:03:37.1]} 20...
Rd8 {[%clk 0:03:30.9]} 21. Nf5 {[%clk 0:03:34.4]} 21... Kf8 {[%clk 0:03:25.6]}
22. Qf3 {[%clk 0:03:20.1]} 22... Nd6 {[%clk 0:03:21.4]} 23. Nxd6 {[%clk
0:03:05.1]} 23... Qxd6 {[%clk 0:03:16.9]} 24. b3 {[%clk 0:02:55.1]} 24... Kf7
{[%clk 0:03:12]} 25. Kf1 {[%clk 0:02:52]} 25... Rh8 {[%clk 0:03:07.4]} 26. Qh5+
{[%clk 0:02:46.1]} 26... g6 {[%clk 0:03:03.6]} 27. Qf3 {[%clk 0:02:39.3]} 27...
a5 {[%clk 0:02:58.6]} 28. Re3 {[%clk 0:02:36]} 28... b5 {[%clk 0:02:53.4]} 29.
Qe2 {[%clk 0:02:33.9]} 29... Qd7 {[%clk 0:02:49]} 30. Ke1 {[%clk 0:02:27.1]}
30... Ra8 {[%clk 0:02:43.9]} 31. Qd2 {[%clk 0:02:22]} 31... Rb8 {[%clk
0:02:39.9]} 32. Re2 {[%clk 0:02:19]} 32... Rh8 {[%clk 0:02:35.4]} 33. Kd1 {[%clk
0:02:14.1]} 33... g5 {[%clk 0:02:30.9]} 34. Kc2 {[%clk 0:02:10.8]} 34... Ra8
{[%clk 0:02:26.1]} 35. Qd3 {[%clk 0:02:05.8]} 35... Kg7 {[%clk 0:02:21.7]} 36.
Re3 {[%clk 0:01:54.7]} 36... Re8 {[%clk 0:02:16.6]} 37. Qe2 {[%clk 0:01:52]}
37... Kf8 {[%clk 0:02:11.8]} 38. Rxe8+ {[%clk 0:01:47.7]} 38... Qxe8 {[%clk
0:02:07.8]} 39. Qxe8+ {[%clk 0:01:45.7]} 39... Kxe8 {[%clk 0:02:04.5]} 40. Kd3
{[%clk 0:01:45.2]} 40... Kf7 {[%clk 0:02:00.4]} 41. f4 {[%clk 0:01:36.4]} 41...
gxf4 {[%clk 0:01:56.1]} 42. gxf4 {[%clk 0:01:34.2]} 42... Kg6 {[%clk 0:01:52.5]}
43. Ke3 {[%clk 0:01:33.3]} 43... Kf5 {[%clk 0:01:49.2]} 44. Kf3 {[%clk
0:01:29.6]} 44... b4 {[%clk 0:01:45.6]} 45. cxb4 {[%clk 0:01:26.7]} 45... axb4
{[%clk 0:01:42.6]} 46. g4+ {[%clk 0:01:25]} 46... Kg6 {[%clk 0:01:38.6]} 47. Kg3
{[%clk 0:01:20.2]} 47... f5 {[%clk 0:01:35.2]} 48. Kh4 {[%clk 0:01:13.2]} 48...
fxg4 {[%clk 0:01:31.8]} 49. Kxg4 {[%clk 0:01:12.3]} 49... h5+ {[%clk 0:01:28.5]}
50. Kh4 {[%clk 0:01:10.2]} 50... Kf5 {[%clk 0:01:25.4]} 51. Kxh5 {[%clk
0:01:08.7]} 51... Kxf4 {[%clk 0:01:22.5]} 52. Kg6 {[%clk 0:01:07.9]} 52... Ke4
{[%clk 0:01:19]} 53. Kf6 {[%clk 0:01:07.8]} 53... Kxd4 {[%clk 0:01:15.4]} 54.
Ke6 {[%clk 0:01:05.2]} 54... Kc3 {[%clk 0:01:12.2]} 0-1

[Event "Live Chess"]
[Site "Chess.com"]
[Date "2023.05.21"]
[Round "-"]
[White "Mikhail_Golubev"]
[Black "TKDRyan"]
[Result "1-0"]
[WhiteElo "2482"]
[BlackElo "1137"]
[TimeControl "300"]
[EndTime "1:39:51 PDT"]
[Termination "Mikhail_Golubev won on time"]

1. h3 {[%clk 0:04:57.3]} 1... e6 {[%clk 0:04:55.9]} 2. a3 {[%clk 0:04:56.4]}
2... d5 {[%clk 0:04:54.3]} 3. e3 {[%clk 0:04:55.1]} 3... Nc6 {[%clk 0:04:53.8]}
4. c4 {[%clk 0:04:54]} 4... Nf6 {[%clk 0:04:46.6]} 5. d4 {[%clk 0:04:50.5]} 5...
Bd6 {[%clk 0:04:41.1]} 6. Nf3 {[%clk 0:04:48.7]} 6... O-O {[%clk 0:04:39.9]} 7.
Qc2 {[%clk 0:04:46]} 7... dxc4 {[%clk 0:04:30.1]} 8. Bxc4 {[%clk 0:04:44.1]}
8... e5 {[%clk 0:04:29.5]} 9. O-O {[%clk 0:04:36.6]} 9... Ne7 {[%clk 0:04:16.6]}
10. dxe5 {[%clk 0:04:35]} 10... Bxe5 {[%clk 0:04:13.8]} 11. Nxe5 {[%clk
0:04:33.4]} 11... Bf5 {[%clk 0:04:10.7]} 12. Qe2 {[%clk 0:04:32.1]} 12... Qd6
{[%clk 0:03:39]} 13. Nf3 {[%clk 0:04:27.1]} 13... Ng6 {[%clk 0:03:20.2]} 14. Nc3
{[%clk 0:04:14.7]} 14... a6 {[%clk 0:03:16.8]} 15. Rd1 {[%clk 0:04:10.1]} 15...
Qb6 {[%clk 0:03:03.1]} 16. e4 {[%clk 0:04:01.9]} 16... Be6 {[%clk 0:02:43.2]}
17. Be3 {[%clk 0:03:54.3]} 17... Qc6 {[%clk 0:02:32.2]} 18. Bxe6 {[%clk
0:03:34.3]} 18... fxe6 {[%clk 0:02:28.6]} 19. Nd4 {[%clk 0:03:31.2]} 19... Qe8
{[%clk 0:02:20.1]} 20. Qc4 {[%clk 0:03:28.2]} 20... Ne5 {[%clk 0:01:58.4]} 21.
Qxe6+ {[%clk 0:03:26.8]} 21... Kh8 {[%clk 0:01:53.8]} 22. Qxe8 {[%clk 0:03:21]}
22... Raxe8 {[%clk 0:01:51.9]} 23. Bg5 {[%clk 0:03:09.7]} 23... Nc4 {[%clk
0:01:26.1]} 24. f3 {[%clk 0:03:08.8]} 24... Nxb2 {[%clk 0:01:22.4]} 25. Rdb1
{[%clk 0:03:07.4]} 25... Nd3 {[%clk 0:01:20.8]} 26. Rxb7 {[%clk 0:03:05.2]}
26... Nh5 {[%clk 0:01:08.7]} 27. Rxc7 {[%clk 0:02:59.4]} 27... Nhf4 {[%clk
0:01:01.6]} 28. Bxf4 {[%clk 0:02:57.2]} 28... Rxf4 {[%clk 0:01:00]} 29. Nf5
{[%clk 0:02:42.1]} 29... g6 {[%clk 0:00:44.2]} 30. Ne3 {[%clk 0:02:19.6]} 30...
h5 {[%clk 0:00:29.3]} 31. Ncd5 {[%clk 0:02:17.5]} 31... Rff8 {[%clk 0:00:23.9]}
32. Rb1 {[%clk 0:02:15.9]} 32... Rb8 {[%clk 0:00:21.7]} 33. Rxb8 {[%clk
0:02:12.2]} 33... Rxb8 {[%clk 0:00:20.6]} 34. Nf6 {[%clk 0:02:11.8]} 34... Rb1+
{[%clk 0:00:19.3]} 35. Nf1 {[%clk 0:02:09.3]} 1-0

[Event "Live Chess"]
[Site "Chess.com"]
[Date "2023.05.21"]
[Round "-"]
[White "OleksiyJr1"]
[Black "Richardallis"]
[Result "0-1"]
[WhiteElo "979"]
[BlackElo "1865"]
[TimeControl "300"]
[EndTime "1:39:55 PDT"]
[Termination "Richardallis won by resignation"]

1. e4 {[%clk 0:04:56.3]} 1... d5 {[%clk 0:04:58.8]} 2. exd5 {[%clk 0:04:53.5]}
2... Nf6 {[%clk 0:04:58.1]} 3. Nc3 {[%clk 0:04:53.4]} 3... Nxd5 {[%clk
0:04:57.4]} 4. Nxd5 {[%clk 0:04:52.7]} 4... Qxd5 {[%clk 0:04:56.9]} 5. Nf3
{[%clk 0:04:52.4]} 5... Bf5 {[%clk 0:04:56]} 6. c3 {[%clk 0:04:49.7]} 6... Nd7
{[%clk 0:04:52.4]} 7. d4 {[%clk 0:04:48.6]} 7... e5 {[%clk 0:04:51.1]} 8. Be3
{[%clk 0:04:43.9]} 8... e4 {[%clk 0:04:49.5]} 9. Nd2 {[%clk 0:04:39.4]} 9... Bd6
{[%clk 0:04:47.9]} 10. Bc4 {[%clk 0:04:37]} 10... Qa5 {[%clk 0:04:46.2]} 11. O-O
{[%clk 0:04:30.5]} 11... c6 {[%clk 0:04:44.3]} 12. Bb3 {[%clk 0:04:27.3]} 12...
O-O {[%clk 0:04:41.5]} 13. Bc2 {[%clk 0:04:25.5]} 13... Rae8 {[%clk 0:04:38.9]}
14. Re1 {[%clk 0:04:15.5]} 14... Bb8 {[%clk 0:04:36.6]} 15. f3 {[%clk
0:03:48.1]} 15... exf3 {[%clk 0:04:35.1]} 16. Qxf3 {[%clk 0:03:48]} 16... Bxc2
{[%clk 0:04:33.3]} 17. Bg5 {[%clk 0:03:43.3]} 17... Qxg5 {[%clk 0:04:31.3]} 18.
Rxe8 {[%clk 0:03:39.6]} 18... Rxe8 {[%clk 0:04:30.2]} 19. Qf1 {[%clk 0:03:39.5]}
0-1

[Event "Live Chess"]
[Site "Chess.com"]
[Date "2023.05.21"]
[Round "-"]
[White "stevochess11"]
[Black "TheSmoulderingMaster"]
[Result "0-1"]
[WhiteElo "1744"]
[BlackElo "1696"]
[TimeControl "300"]
[EndTime "1:40:10 PDT"]
[Termination "TheSmoulderingMaster won by resignation"]

1. e4 {[%clk 0:04:46.1]} 1... c5 {[%clk 0:04:58.9]} 2. c3 {[%clk 0:04:44.3]}
2... d5 {[%clk 0:04:57.6]} 3. f3 {[%clk 0:04:43.2]} 3... dxe4 {[%clk 0:04:56.1]}
4. fxe4 {[%clk 0:04:42.3]} 4... e5 {[%clk 0:04:55.3]} 5. d3 {[%clk 0:04:37.2]}
5... Nc6 {[%clk 0:04:54]} 6. g3 {[%clk 0:04:34]} 6... Nf6 {[%clk 0:04:52.8]} 7.
Nh3 {[%clk 0:04:32.8]} 7... Bg4 {[%clk 0:04:50.7]} 8. Qb3 {[%clk 0:04:30.5]}
8... Qd7 {[%clk 0:04:46.8]} 9. Nf2 {[%clk 0:04:29.1]} 9... Bf3 {[%clk
0:04:44.6]} 10. Rg1 {[%clk 0:04:27.8]} 10... Be7 {[%clk 0:04:40.8]} 11. Bh3
{[%clk 0:04:26.3]} 11... Bg4 {[%clk 0:04:35.3]} 12. Bg2 {[%clk 0:04:25]} 12...
O-O {[%clk 0:04:33.5]} 13. Nd2 {[%clk 0:04:22.1]} 13... Be6 {[%clk 0:04:30.9]}
14. Qd1 {[%clk 0:04:19.8]} 14... Rad8 {[%clk 0:04:27.6]} 15. Nf3 {[%clk
0:04:18.4]} 15... Ng4 {[%clk 0:04:24.5]} 16. Be3 {[%clk 0:04:13.3]} 16... Nxe3
{[%clk 0:04:22.1]} 17. Qe2 {[%clk 0:04:08.7]} 17... Nxg2+ {[%clk 0:04:21]} 18.
Rxg2 {[%clk 0:04:07.8]} 18... Bg4 {[%clk 0:04:19.5]} 19. O-O-O {[%clk
0:04:00.9]} 19... Bxf3 {[%clk 0:04:18.6]} 20. Qxf3 {[%clk 0:04:00.7]} 20... Bg5+
{[%clk 0:04:16.5]} 21. Kb1 {[%clk 0:03:59.6]} 21... c4 {[%clk 0:04:14.2]} 22.
Nh3 {[%clk 0:03:57.4]} 22... Bf6 {[%clk 0:04:08.7]} 23. Qh5 {[%clk 0:03:55.4]}
23... g6 {[%clk 0:04:05]} 24. Qh6 {[%clk 0:03:51.6]} 24... Bg7 {[%clk
0:04:03.8]} 25. Qe3 {[%clk 0:03:50.3]} 25... Qxh3 {[%clk 0:04:02]} 0-1

[Event "Live Chess"]
[Site "Chess.com"]
[Date "2023.05.21"]
[Round "-"]
[White "Shepherds_Pie"]
[Black "Doge_Dandolo"]
[Result "1-0"]
[WhiteElo "1923"]
[BlackElo "1878"]
[TimeControl "300"]
[EndTime "1:40:22 PDT"]
[Termination "Shepherds_Pie won by resignation"]

1. c4 {[%clk 0:04:57]} 1... Nf6 {[%clk 0:04:58.3]} 2. Nc3 {[%clk 0:04:54.8]}
2... c5 {[%clk 0:04:56.9]} 3. g3 {[%clk 0:04:53.6]} 3... e6 {[%clk 0:04:54.5]}
4. Nf3 {[%clk 0:04:51.9]} 4... d5 {[%clk 0:04:50]} 5. cxd5 {[%clk 0:04:49.7]}
5... exd5 {[%clk 0:04:47.1]} 6. d4 {[%clk 0:04:47.7]} 6... cxd4 {[%clk
0:04:45.4]} 7. Nxd4 {[%clk 0:04:46.3]} 7... Nc6 {[%clk 0:04:44.4]} 8. Bg2 {[%clk
0:04:45.1]} 8... Bc5 {[%clk 0:04:38.8]} 9. Nb3 {[%clk 0:04:43.7]} 9... Be7
{[%clk 0:04:37.1]} 10. O-O {[%clk 0:04:42.1]} 10... O-O {[%clk 0:04:35.7]} 11.
Nxd5 {[%clk 0:04:40.6]} 11... Nxd5 {[%clk 0:04:34.2]} 12. Qxd5 {[%clk
0:04:36.1]} 12... Be6 {[%clk 0:04:31.3]} 13. Qxd8 {[%clk 0:04:33.7]} 13... Rfxd8
{[%clk 0:04:29.6]} 14. Be3 {[%clk 0:04:30.6]} 14... Nb4 {[%clk 0:04:27.4]} 15.
Nd4 {[%clk 0:04:23.7]} 15... Bxa2 {[%clk 0:04:18.8]} 16. Nf5 {[%clk 0:04:15.1]}
16... Bf8 {[%clk 0:04:15.2]} 17. Bxb7 {[%clk 0:04:06.5]} 17... Rab8 {[%clk
0:04:11.8]} 18. Be4 {[%clk 0:04:03.9]} 18... a6 {[%clk 0:04:03.6]} 19. Ba7
{[%clk 0:03:48.8]} 19... Rbc8 {[%clk 0:03:55.5]} 20. Bb7 {[%clk 0:03:43.2]}
20... Rc2 {[%clk 0:03:46.2]} 21. Bb6 {[%clk 0:03:36.9]} 21... Rb8 {[%clk
0:03:43.8]} 22. Be4 {[%clk 0:03:27.2]} 22... Rxe2 {[%clk 0:03:37.8]} 23. Bf3
{[%clk 0:03:11.7]} 23... Re5 {[%clk 0:03:35.3]} 24. Bc7 {[%clk 0:03:08.3]} 24...
Rbb5 {[%clk 0:03:29.1]} 25. Bxe5 {[%clk 0:03:06.4]} 25... Rxe5 {[%clk
0:03:27.9]} 26. Nd4 {[%clk 0:03:03.7]} 26... g6 {[%clk 0:03:21.9]} 27. Nc6
{[%clk 0:02:56.8]} 27... Rc5 {[%clk 0:03:17.3]} 28. Nxb4 {[%clk 0:02:54.6]} 1-0

[Event "Live Chess"]
[Site "Chess.com"]
[Date "2023.05.21"]
[Round "-"]
[White "Larchikov"]
[Black "domrobson"]
[Result "1-0"]
[WhiteElo "2055"]
[BlackElo "1746"]
[TimeControl "300"]
[EndTime "1:40:41 PDT"]
[Termination "Larchikov won by resignation"]

1. e4 {[%clk 0:04:56.6]} 1... e5 {[%clk 0:04:59.5]} 2. Nf3 {[%clk 0:04:55.9]}
2... Nc6 {[%clk 0:04:58.7]} 3. Bc4 {[%clk 0:04:55.5]} 3... Nf6 {[%clk
0:04:58.1]} 4. O-O {[%clk 0:04:53.6]} 4... Bc5 {[%clk 0:04:57.5]} 5. c3 {[%clk
0:04:52.3]} 5... a6 {[%clk 0:04:55.6]} 6. d4 {[%clk 0:04:51.8]} 6... exd4 {[%clk
0:04:49.2]} 7. cxd4 {[%clk 0:04:51.7]} 7... Ba7 {[%clk 0:04:48.7]} 8. e5 {[%clk
0:04:47.7]} 8... d5 {[%clk 0:04:45.3]} 9. exf6 {[%clk 0:04:45.5]} 9... dxc4
{[%clk 0:04:44.3]} 10. fxg7 {[%clk 0:04:44.6]} 10... Rg8 {[%clk 0:04:43.9]} 11.
Bg5 {[%clk 0:04:42.8]} 11... f6 {[%clk 0:04:42.3]} 12. Re1+ {[%clk 0:04:41]}
12... Kf7 {[%clk 0:04:41]} 13. Ne5+ {[%clk 0:04:36.8]} 13... Nxe5 {[%clk
0:04:38.6]} 14. Qh5+ {[%clk 0:04:33.7]} 14... Ng6 {[%clk 0:04:37.2]} 15. Bh6
{[%clk 0:04:24.2]} 15... Qxd4 {[%clk 0:04:28.6]} 16. Nc3 {[%clk 0:04:14]} 16...
Qxf2+ {[%clk 0:04:26.8]} 17. Kh1 {[%clk 0:04:10.6]} 17... Qf5 {[%clk 0:04:25.5]}
18. Qe2 {[%clk 0:04:05.8]} 18... Bd7 {[%clk 0:04:19.3]} 19. Rf1 {[%clk
0:04:02.6]} 19... Qe6 {[%clk 0:04:16.4]} 20. Ne4 {[%clk 0:03:55.2]} 20... Bd4
{[%clk 0:04:12.8]} 21. Ng5+ {[%clk 0:03:43.4]} 1-0

[Event "Live Chess"]
[Site "Chess.com"]
[Date "2023.05.21"]
[Round "-"]
[White "OceanFloater"]
[Black "JoeyCage"]
[Result "0-1"]
[WhiteElo "1014"]
[BlackElo "2297"]
[TimeControl "300"]
[EndTime "1:40:50 PDT"]
[Termination "JoeyCage won by checkmate"]

1. e4 {[%clk 0:04:52.5]} 1... c5 {[%clk 0:04:58.3]} 2. Nf3 {[%clk 0:04:51.9]}
2... Nc6 {[%clk 0:04:56.7]} 3. Nc3 {[%clk 0:04:51.4]} 3... g6 {[%clk 0:04:55.2]}
4. d4 {[%clk 0:04:50]} 4... cxd4 {[%clk 0:04:54]} 5. Nxd4 {[%clk 0:04:48.8]}
5... Bg7 {[%clk 0:04:52.6]} 6. Nxc6 {[%clk 0:04:47.7]} 6... bxc6 {[%clk
0:04:48.6]} 7. Bd2 {[%clk 0:04:43.3]} 7... Nf6 {[%clk 0:04:46.5]} 8. Bc4 {[%clk
0:04:42.5]} 8... O-O {[%clk 0:04:44.3]} 9. O-O {[%clk 0:04:39.6]} 9... d5 {[%clk
0:04:42.8]} 10. exd5 {[%clk 0:04:37.1]} 10... cxd5 {[%clk 0:04:41.7]} 11. Nxd5
{[%clk 0:04:32.9]} 11... Nxd5 {[%clk 0:04:39.9]} 12. c3 {[%clk 0:04:29.3]} 12...
Bb7 {[%clk 0:04:38.1]} 13. Qc2 {[%clk 0:04:18]} 13... Rc8 {[%clk 0:04:34.8]} 14.
Bb3 {[%clk 0:04:15.5]} 14... Qb6 {[%clk 0:04:29.2]} 15. c4 {[%clk 0:04:06.2]}
15... Nb4 {[%clk 0:04:25]} 16. Qd1 {[%clk 0:03:55.7]} 16... Rfd8 {[%clk
0:04:22.5]} 17. Re1 {[%clk 0:03:53.7]} 17... Nd3 {[%clk 0:04:19.8]} 18. Rxe7
{[%clk 0:03:49.8]} 18... Qxf2+ {[%clk 0:04:14.7]} 19. Kh1 {[%clk 0:03:47.8]}
19... Qxg2# {[%clk 0:04:14.6]} 0-1

[Event "Live Chess"]
[Site "Chess.com"]
[Date "2023.05.21"]
[Round "-"]
[White "Goblinbasher"]
[Black "Singapourfeuj"]
[Result "1/2-1/2"]
[WhiteElo "1242"]
[BlackElo "2186"]
[TimeControl "300"]
[EndTime "1:40:52 PDT"]
[Termination "Game drawn - timeout vs insufficient material"]

1. e4 {[%clk 0:04:54.6]} 1... c5 {[%clk 0:04:58.6]} 2. Nc3 {[%clk 0:04:51]} 2...
Nc6 {[%clk 0:04:57.1]} 3. f4 {[%clk 0:04:48.7]} 3... e6 {[%clk 0:04:53.7]} 4.
Bb5 {[%clk 0:04:44.6]} 4... Nge7 {[%clk 0:04:52.2]} 5. Nf3 {[%clk 0:04:43.1]}
5... a6 {[%clk 0:04:51.4]} 6. Bxc6 {[%clk 0:04:41.5]} 6... Nxc6 {[%clk
0:04:50.5]} 7. O-O {[%clk 0:04:40.8]} 7... d5 {[%clk 0:04:49.3]} 8. exd5 {[%clk
0:04:30.2]} 8... exd5 {[%clk 0:04:47.5]} 9. d4 {[%clk 0:04:25]} 9... cxd4 {[%clk
0:04:44.5]} 10. Nxd4 {[%clk 0:04:23.3]} 10... Bc5 {[%clk 0:04:42.3]} 11. Ne2
{[%clk 0:04:19]} 11... O-O {[%clk 0:04:41]} 12. Kh1 {[%clk 0:04:17.7]} 12... Bg4
{[%clk 0:04:39.3]} 13. Nxc6 {[%clk 0:04:10.1]} 13... bxc6 {[%clk 0:04:37.8]} 14.
Qd3 {[%clk 0:04:05.1]} 14... Re8 {[%clk 0:04:35.1]} 15. Ng3 {[%clk 0:04:03.1]}
15... g6 {[%clk 0:04:32.3]} 16. f5 {[%clk 0:03:56.7]} 16... Qh4 {[%clk
0:04:24.1]} 17. fxg6 {[%clk 0:03:46.6]} 17... hxg6 {[%clk 0:04:22.8]} 18. a3
{[%clk 0:03:05.6]} 18... Bd6 {[%clk 0:04:20.7]} 19. Bf4 {[%clk 0:02:59.5]} 19...
Bc5 {[%clk 0:04:07.8]} 20. b4 {[%clk 0:02:50.2]} 20... Ba7 {[%clk 0:04:05.6]}
21. Qc3 {[%clk 0:02:43.2]} 21... Rac8 {[%clk 0:04:01.6]} 22. Be5 {[%clk
0:02:12.5]} 22... Rcd8 {[%clk 0:03:46.1]} 23. Bf6 {[%clk 0:02:08.5]} 23... d4
{[%clk 0:03:40]} 24. Qxc6 {[%clk 0:01:59.3]} 24... Qh6 {[%clk 0:03:32.5]} 25.
Bxd8 {[%clk 0:01:54.9]} 25... Rxd8 {[%clk 0:03:31.7]} 26. Qc7 {[%clk 0:01:46.8]}
26... Rf8 {[%clk 0:03:30.1]} 27. Qxa7 {[%clk 0:01:41.2]} 27... Qd2 {[%clk
0:03:22.6]} 28. Rad1 {[%clk 0:01:28.1]} 28... Qxc2 {[%clk 0:03:21.5]} 29. Rxd4
{[%clk 0:01:24.8]} 29... Be6 {[%clk 0:03:19.1]} 30. Qxa6 {[%clk 0:01:16.5]}
30... Kg7 {[%clk 0:03:17.7]} 31. Rdf4 {[%clk 0:01:11.1]} 31... Rd8 {[%clk
0:03:09.7]} 32. Re1 {[%clk 0:01:05.8]} 32... Rd1 {[%clk 0:03:06.9]} 33. Rxd1
{[%clk 0:01:04]} 33... Qxd1+ {[%clk 0:03:05.4]} 34. Rf1 {[%clk 0:01:01.9]} 34...
Qc2 {[%clk 0:03:03]} 35. Qe2 {[%clk 0:00:53.9]} 35... Qb3 {[%clk 0:02:59.5]} 36.
Qf3 {[%clk 0:00:51.2]} 36... Bd5 {[%clk 0:02:56.1]} 37. Qxb3 {[%clk 0:00:49.2]}
37... Bxb3 {[%clk 0:02:54.8]} 38. Rf3 {[%clk 0:00:45.9]} 38... Bd5 {[%clk
0:02:52.6]} 39. Rc3 {[%clk 0:00:41.4]} 39... f5 {[%clk 0:02:51.2]} 40. a4 {[%clk
0:00:40.5]} 40... f4 {[%clk 0:02:50.3]} 41. Ne2 {[%clk 0:00:38]} 41... g5 {[%clk
0:02:48.4]} 42. Kg1 {[%clk 0:00:36.4]} 42... Kf6 {[%clk 0:02:46.3]} 43. a5
{[%clk 0:00:33.9]} 43... Ke5 {[%clk 0:02:45]} 44. b5 {[%clk 0:00:33]} 44... g4
{[%clk 0:02:44.2]} 45. b6 {[%clk 0:00:30.9]} 45... f3 {[%clk 0:02:43.4]} 46.
gxf3 {[%clk 0:00:29.1]} 46... gxf3 {[%clk 0:02:42.5]} 47. Rxf3 {[%clk
0:00:24.1]} 47... Bxf3 {[%clk 0:02:40.6]} 48. Nc3 {[%clk 0:00:22.9]} 48... Bb7
{[%clk 0:02:38]} 49. Kf2 {[%clk 0:00:19.8]} 49... Kd4 {[%clk 0:02:36.9]} 50.
Ne2+ {[%clk 0:00:18.3]} 50... Kc5 {[%clk 0:02:35.3]} 51. h4 {[%clk 0:00:17.6]}
51... Kb5 {[%clk 0:02:33.9]} 52. h5 {[%clk 0:00:16.9]} 52... Kxa5 {[%clk
0:02:32.4]} 53. h6 {[%clk 0:00:14.5]} 53... Be4 {[%clk 0:02:31.2]} 54. h7 {[%clk
0:00:14.2]} 54... Bxh7 {[%clk 0:02:30.2]} 55. b7 {[%clk 0:00:12.2]} 55... Bd3
{[%clk 0:02:28]} 56. b8=Q {[%clk 0:00:10.5]} 56... Bb5 {[%clk 0:02:27.1]} 57.
Ke3 {[%clk 0:00:09.2]} 57... Ka4 {[%clk 0:02:25.4]} 58. Kd4 {[%clk 0:00:08.4]}
58... Bxe2 {[%clk 0:02:23.9]} 59. Kc3 {[%clk 0:00:06.7]} 59... Ka5 {[%clk
0:02:22.3]} 60. Qb4+ {[%clk 0:00:05.6]} 60... Ka6 {[%clk 0:02:21.1]} 61. Qc5
{[%clk 0:00:04.7]} 61... Bb5 {[%clk 0:02:19.4]} 62. Kb4 {[%clk 0:00:03.5]} 62...
Be2 {[%clk 0:02:17.2]} 63. Qd6+ {[%clk 0:00:02.3]} 63... Kb7 {[%clk 0:02:15.9]}
64. Kc5 {[%clk 0:00:01.2]} 64... Bf3 {[%clk 0:02:14.3]} 1/2-1/2

[Event "Live Chess"]
[Site "Chess.com"]
[Date "2023.05.21"]
[Round "-"]
[White "Woodpusher500"]
[Black "HadesLearmonth"]
[Result "0-1"]
[WhiteElo "975"]
[BlackElo "1222"]
[TimeControl "300"]
[EndTime "1:40:59 PDT"]
[Termination "HadesLearmonth won by resignation"]

1. e4 {[%clk 0:04:56.5]} 1... e5 {[%clk 0:04:56.4]} 2. Nc3 {[%clk 0:04:52.5]}
2... Nc6 {[%clk 0:04:54.2]} 3. Bc4 {[%clk 0:04:50.1]} 3... Nf6 {[%clk
0:04:52.1]} 4. Nf3 {[%clk 0:04:40.6]} 4... Bc5 {[%clk 0:04:49.4]} 5. d3 {[%clk
0:04:33.6]} 5... O-O {[%clk 0:04:46.6]} 6. Bg5 {[%clk 0:04:28.8]} 6... Qe7
{[%clk 0:04:39.1]} 7. Nd5 {[%clk 0:04:21.5]} 7... Qd6 {[%clk 0:04:32.9]} 8.
Nxf6+ {[%clk 0:04:10.9]} 8... gxf6 {[%clk 0:04:32.8]} 9. Bh4 {[%clk 0:04:02.6]}
9... Kh8 {[%clk 0:04:30.1]} 10. O-O {[%clk 0:03:59.7]} 10... Rg8 {[%clk
0:04:27.2]} 11. Nd2 {[%clk 0:03:43.1]} 11... Qd4 {[%clk 0:04:18.8]} 12. Qf3
{[%clk 0:03:21.6]} 12... Rg6 {[%clk 0:04:08.3]} 13. Rab1 {[%clk 0:03:01.5]}
13... d6 {[%clk 0:04:02.3]} 14. Nb3 {[%clk 0:02:47.5]} 14... Bg4 {[%clk
0:03:42.9]} 15. Qxg4 {[%clk 0:02:26]} 15... Rxg4 {[%clk 0:03:33.9]} 16. Bxf6+
{[%clk 0:02:23.3]} 16... Kg8 {[%clk 0:03:30.8]} 17. Nxd4 {[%clk 0:02:19.7]}
17... Nxd4 {[%clk 0:03:26.4]} 18. f3 {[%clk 0:02:11.4]} 18... Rg6 {[%clk
0:03:23.1]} 19. Bh4 {[%clk 0:02:03.9]} 19... Kh8 {[%clk 0:03:21]} 20. Bxf7
{[%clk 0:01:58.1]} 20... Rg7 {[%clk 0:03:17.6]} 21. Bd5 {[%clk 0:01:54]} 21...
Nxc2+ {[%clk 0:03:15]} 22. Kh1 {[%clk 0:01:45.7]} 22... c6 {[%clk 0:03:13.6]}
23. Bb3 {[%clk 0:01:41.6]} 23... Ne3 {[%clk 0:03:09.3]} 24. f4 {[%clk
0:01:32.3]} 24... Nxf1 {[%clk 0:03:02.5]} 25. Rxf1 {[%clk 0:01:30.6]} 25... exf4
{[%clk 0:03:01.3]} 26. Rxf4 {[%clk 0:01:28.3]} 26... h6 {[%clk 0:02:56.4]} 27.
h3 {[%clk 0:01:23.5]} 27... Bd4 {[%clk 0:02:49.9]} 28. Bc4 {[%clk 0:01:20.2]}
28... Bxb2 {[%clk 0:02:45.5]} 29. Bf6 {[%clk 0:01:13.3]} 29... Bxf6 {[%clk
0:02:42.3]} 30. Rxf6 {[%clk 0:01:11.4]} 30... b5 {[%clk 0:02:37.2]} 31. Bb3
{[%clk 0:01:08.6]} 31... Kh7 {[%clk 0:02:31.1]} 32. Bc2 {[%clk 0:01:03.3]} 32...
d5 {[%clk 0:02:28.7]} 33. exd5 {[%clk 0:01:01.3]} 33... cxd5 {[%clk 0:02:28.6]}
34. d4+ {[%clk 0:00:59.7]} 34... Kh8 {[%clk 0:02:24]} 35. Rd6 {[%clk 0:00:56.3]}
35... Rc8 {[%clk 0:02:21.6]} 36. Bd3 {[%clk 0:00:54.5]} 36... Rcg8 {[%clk
0:02:18.2]} 37. Bf1 {[%clk 0:00:48]} 37... Rg5 {[%clk 0:02:13.1]} 38. Ra6 {[%clk
0:00:39.9]} 38... R8g7 {[%clk 0:02:09.9]} 39. Rxh6+ {[%clk 0:00:37]} 39... Kg8
{[%clk 0:02:08.5]} 40. g4 {[%clk 0:00:29.9]} 40... R5g6 {[%clk 0:02:05.2]} 41.
Bg2 {[%clk 0:00:28.2]} 41... Rxh6 {[%clk 0:02:03.3]} 42. h4 {[%clk 0:00:23.6]}
42... Rxh4+ {[%clk 0:02:01.6]} 0-1